fUSD/lending_fUSD_20250629
["ID","MTS","AMOUNT","RATE_DAILY","PERIOD"]
[368523592,1751195455797,-7977.88,0.00027671,3]
[368523594,1751195455808,-490.0,0.00027671,3]
[368523597,1751195455817,-490.0,0.00027671,3]
[368523598,1751195455827,-1062.58,0.00027671,3]
[368523600,1751195455836,-946.94,0.00027671,3]
[368523602,1751195455846,-1047.7,0.00027671,3]
[368523605,1751195455855,-752.46,0.00027671,3]
[368523607,1751195455866,-951.95,0.00027671,3]
[368523609,1751195455876,-490.0,0.00027671,3]
[368523611,1751195455886,-2249.11,0.00027671,3]
[368523612,1751195455895,-883.6,0.00027671,3]
[368523614,1751195455904,-1419.39,0.00027671,3]
[368523616,1751195455914,-1046.27,0.00027671,3]
[368523618,1751195455923,-490.0,0.00027671,3]
[368523620,1751195455932,-186.08598005,0.00027671,3]
[368523622,1751195455941,-1233.28,0.00027671,3]
[368523624,1751195455950,-490.0,0.00027671,3]
[368523626,1751195455961,-490.0,0.00027671,3]
[368523628,1751195455971,-1053.68,0.00027671,3]
[368523630,1751195455980,-1876.95,0.00027671,3]
[368523632,1751195455990,-1437.9,0.00027671,3]
[368523634,1751195456001,-490.0,0.00027671,3]
[368523636,1751195456011,-577.96,0.00027671,3]
[368523638,1751195456020,-858.76,0.00027671,3]
[368523648,1751195456096,-2637.31,0.00027671,3]
[368523650,1751195456105,-1212.63,0.00027671,3]
[368523652,1751195456115,-1172.02,0.00027671,3]
[368523654,1751195456124,-490.0,0.00027671,3]
[368523656,1751195456133,-1475.83,0.00027671,3]
[368523658,1751195456142,-939.2,0.00027671,3]
[368523659,1751195456151,-501.55015801,0.00027671,3]
[368523662,1751195456161,-394.99,0.00027671,3]
[368523664,1751195456170,-490.0,0.00027671,3]
[368523666,1751195456179,-1487.73,0.00027671,3]
[368523668,1751195456188,-490.0,0.00027671,3]
[368523669,1751195456197,-513.84,0.00027671,3]
[368523672,1751195456207,-581.65,0.00027671,3]
[368523673,1751195456216,-1094.1,0.00027671,3]
[368523675,1751195456225,-492.4995218,0.00027671,3]
[368523677,1751195456235,-490.0,0.00027671,3]
[368523679,1751195456244,-1624.17,0.00027671,3]
[368523681,1751195456253,-1150.15,0.00027671,3]
[368523683,1751195456262,-2369.11,0.00027671,3]
[368523685,1751195456271,-3721.52,0.00027671,3]
[368523687,1751195456281,-934.06,0.00027671,3]
[368523689,1751195456290,-539.43702374,0.00027671,3]
[368523691,1751195456299,-840.28,0.00027671,3]
[368523693,1751195456309,-490.0,0.00027671,3]
[368523695,1751195456319,-1892.33,0.00027671,3]
[368523697,1751195456330,-3862.52,0.00027671,3]
[368523699,1751195456339,-943.0,0.00027671,3]
[368523701,1751195456348,-490.0,0.00027671,3]
[368523703,1751195456358,-463.04604681,0.00027671,3]
[368523705,1751195456369,-1500.56,0.00027671,3]
[368523707,1751195456378,-1722.76,0.00027671,3]
[368523709,1751195456387,-490.0,0.00027671,3]
[368523712,1751195456397,-490.0,0.00027671,3]
[368523714,1751195456407,-490.0,0.00027671,3]
[368523716,1751195456417,-1385.63,0.00027671,3]
[368523718,1751195456426,-690.18,0.00027671,3]
[368523720,1751195456435,-1738.51,0.00027671,3]
[368523721,1751195456444,-490.0,0.00027671,3]
[368523724,1751195456454,-893.12,0.00027671,3]
[368523725,1751195456463,-490.0,0.00027671,3]
[368523727,1751195456472,-490.0,0.00027671,3]
[368523729,1751195456482,-3272.52,0.00027671,3]
[368523731,1751195456491,-490.0,0.00027671,3]
[368523733,1751195456500,-490.0,0.00027671,3]
[368523735,1751195456509,-884.39,0.00027671,3]
[368523737,1751195456518,-1232.52,0.00027671,3]
[368523740,1751195456529,-490.0,0.00027671,3]
[368523742,1751195456538,-490.0,0.00027671,3]
[368523743,1751195456547,-551.46786369,0.00027671,2]
[368523745,1751195456556,-2520.33,0.00027671,3]
[368523747,1751195456565,-8290.98,0.00027671,3]
[368523749,1751195456575,-490.0,0.00027671,3]
[368523751,1751195456585,-2639.97,0.00027671,3]
[368523753,1751195456593,-1073.7,0.00027671,3]
[368523755,1751195456602,-490.0,0.00027671,3]
[368523757,1751195456611,-490.0,0.00027671,3]
[368523759,1751195456621,-1075.68,0.00027671,3]
[368523761,1751195456629,-4185.34,0.00027671,3]
[368523763,1751195456638,-490.0,0.00027671,3]
[368523765,1751195456648,-490.0,0.00027671,3]
[368523767,1751195456658,-506.8,0.00027671,3]
[368523770,1751195456667,-81101.22,0.00027671,3]
[368523772,1751195456676,-490.0,0.00027671,3]
[368523774,1751195456685,-490.0,0.00027671,3]
[368523776,1751195456694,-500.0,0.00027673,5]
[368523778,1751195456703,-500.0,0.00027673,5]
[368523780,1751195456713,-500.0,0.00027673,5]
[368523782,1751195456723,-470.23921822,0.00027673,5]
[368523784,1751195456732,-200.79960313,0.00027673,5]
[368523786,1751195456741,-502.26031338,0.00027673,5]
[368523788,1751195456751,-1000.0,0.000277,2]
[368523790,1751195456761,-822.39111784,0.00027797,17]
[368523791,1751195456770,-1546.854,0.00027857,17]
[368523793,1751195456779,-207.91525355,0.00027857,17]
[368523795,1751195456789,-168.0,0.00027889,2]
[368523797,1751195456798,-1000.0,0.00027921,5]
[368523799,1751195456807,-1000.0,0.00027921,5]
[368523801,1751195456816,-1000.0,0.00027921,5]
[368523803,1751195456825,-502.74385844,0.00027921,5]
[368523805,1751195456835,-1000.0,0.00027921,5]
[368523807,1751195456844,-150.0,0.00027944,3]
[368523809,1751195456854,-490.0,0.00027945,3]
[368523811,1751195456863,-490.0,0.00027945,3]
[368523813,1751195456872,-490.0,0.00027945,3]
[368523815,1751195456881,-490.0,0.00027945,3]
[368523817,1751195456891,-490.0,0.00027945,3]
[368523819,1751195456899,-490.0,0.00027945,3]
[368523821,1751195456908,-572.57,0.00027945,3]
[368523823,1751195456918,-490.0,0.00027945,3]
[368523825,1751195456927,-490.0,0.00027945,3]
[368523827,1751195456936,-828.1,0.00027945,3]
[368523829,1751195456945,-490.0,0.00027945,3]
[368523831,1751195456954,-490.0,0.00027945,3]
[368523833,1751195456964,-356.52957797,0.00027945,3]
[368523835,1751195456973,-490.0,0.00027945,3]
[368523837,1751195456982,-490.0,0.00027945,3]
[368523839,1751195456992,-490.0,0.00027945,3]
[368523841,1751195457001,-490.0,0.00027945,3]
[368523843,1751195457010,-512.15690266,0.00027945,3]
[368523845,1751195457019,-490.0,0.00027945,3]
[368523847,1751195457029,-490.0,0.00027945,3]
[368523848,1751195457038,-490.0,0.00027945,3]
[368523850,1751195457047,-490.0,0.00027945,3]
[368523853,1751195457057,-490.0,0.00027945,3]
[368523855,1751195457067,-490.0,0.00027945,3]
[368523856,1751195457079,-490.0,0.00027945,3]
[368523859,1751195457089,-490.0,0.00027945,3]
[368523860,1751195457098,-490.0,0.00027945,3]
[368523862,1751195457108,-490.0,0.00027945,3]
[368523865,1751195457118,-490.0,0.00027945,3]
[368523867,1751195457129,-567.10253225,0.00027945,3]
[368523869,1751195457138,-490.0,0.00027945,3]
[368523871,1751195457148,-490.0,0.00027945,3]
[368523873,1751195457158,-490.0,0.00027945,3]
[368523875,1751195457168,-490.0,0.00027945,3]
[368523876,1751195457178,-490.0,0.00027945,3]
[368523879,1751195457188,-562.19585887,0.00027945,3]
[368523881,1751195457198,-490.0,0.00027945,3]
[368523882,1751195457208,-490.0,0.00027945,3]
[368523884,1751195457218,-736.21,0.00027945,3]
[368523887,1751195457228,-490.0,0.00027945,3]
[368523888,1751195457237,-490.0,0.00027945,3]
[368523891,1751195457247,-490.0,0.00027945,3]
[368523893,1751195457256,-1000.0,0.00027945,3]
[368523895,1751195457265,-352.52078665,0.00027945,3]
[368523897,1751195457275,-490.0,0.00027945,3]
[368523899,1751195457284,-490.0,0.00027945,3]
[368523900,1751195457293,-490.0,0.00027945,3]
[368523903,1751195457303,-490.0,0.00027945,3]
[368523905,1751195457312,-572.79392426,0.00027945,3]
[368523907,1751195457326,-498.5,0.00027945,3]
[368523909,1751195457336,-490.0,0.00027945,3]
[368523911,1751195457345,-490.0,0.00027945,3]
[368523913,1751195457354,-490.0,0.00027945,3]
[368523915,1751195457365,-490.0,0.00027945,3]
[368523917,1751195457374,-490.0,0.00027945,3]
[368523918,1751195457383,-490.0,0.00027945,3]
[368523921,1751195457393,-490.0,0.00027945,3]
[368523923,1751195457403,-490.0,0.00027945,3]
[368523925,1751195457412,-490.0,0.00027945,3]
[368523926,1751195457421,-490.0,0.00027945,3]
[368523928,1751195457430,-490.0,0.00027945,3]
[368523930,1751195457439,-490.0,0.00027945,3]
[368523932,1751195457449,-490.0,0.00027945,3]
[368523934,1751195457458,-490.0,0.00027945,3]
[368523936,1751195457468,-490.0,0.00027945,3]
[368523938,1751195457478,-490.0,0.00027945,3]
[368523940,1751195457488,-490.0,0.00027945,3]
[368523942,1751195457498,-490.0,0.00027945,3]
[368523944,1751195457508,-490.0,0.00027945,3]
[368523946,1751195457517,-490.0,0.00027945,3]
[368523948,1751195457527,-490.0,0.00027945,3]
[368523950,1751195457536,-490.0,0.00027945,3]
[368523952,1751195457545,-490.0,0.00027945,3]
[368523954,1751195457555,-490.0,0.00027945,3]
[368523956,1751195457565,-490.0,0.00027945,3]
[368523958,1751195457576,-490.0,0.00027945,3]
[368523960,1751195457586,-1266.21,0.00027945,3]
[368523962,1751195457596,-441.67356612,0.00027945,3]
[368523964,1751195457606,-490.0,0.00027945,3]
[368523966,1751195457615,-490.0,0.00027945,3]
[368523968,1751195457624,-490.0,0.00027945,3]
[368523970,1751195457634,-490.0,0.00027945,3]
[368523972,1751195457643,-490.0,0.00027945,3]
[368523974,1751195457653,-490.0,0.00027945,3]
[368523976,1751195457664,-217.99982821,0.00027945,3]
[368523978,1751195457674,-490.0,0.00027945,3]
[368523980,1751195457683,-690.25,0.00027945,3]
[368523982,1751195457693,-490.0,0.00027945,3]
[368523984,1751195457702,-598.13,0.00027945,3]
[368523986,1751195457711,-523.97,0.00027945,3]
[368523988,1751195457720,-1113.04,0.00027945,3]
[368523990,1751195457729,-490.0,0.00027945,3]
[368523992,1751195457738,-679.56,0.00027945,3]
[368523994,1751195457746,-490.0,0.00027945,3]
[368523996,1751195457755,-490.0,0.00027945,3]
[368523998,1751195457766,-490.0,0.00027945,3]
[368524000,1751195457775,-490.0,0.00027945,3]
[368524002,1751195457783,-490.0,0.00027945,3]
[368524004,1751195457792,-594.99,0.00027945,3]
[368524006,1751195457801,-490.0,0.00027945,3]
[368524008,1751195457810,-490.0,0.00027945,3]
[368524010,1751195457819,-490.0,0.00027945,3]
[368524012,1751195457828,-490.0,0.00027945,3]
[368524014,1751195457837,-490.0,0.00027945,3]
[368524016,1751195457846,-490.0,0.00027945,3]
[368524018,1751195457855,-490.0,0.00027945,3]
[368524020,1751195457864,-385.56152261,0.00027945,3]
[368524022,1751195457873,-490.0,0.00027945,3]
[368524024,1751195457882,-490.0,0.00027945,3]
[368524026,1751195457891,-490.0,0.00027945,3]
[368524028,1751195457900,-1446.76,0.00027945,3]
[368524030,1751195457910,-490.0,0.00027945,3]
[368524032,1751195457919,-490.0,0.00027945,3]
[368524034,1751195457928,-490.0,0.00027945,3]
[368524035,1751195457938,-490.0,0.00027945,3]
[368524037,1751195457947,-490.0,0.00027945,3]
[368524039,1751195457956,-490.0,0.00027945,3]
[368524041,1751195457965,-663.42,0.00027945,3]
[368524043,1751195457977,-490.0,0.00027945,3]
[368524045,1751195457986,-1256.21,0.00027945,3]
[368524047,1751195457995,-490.0,0.00027945,3]
[368524049,1751195458004,-490.0,0.00027945,3]
[368524051,1751195458014,-490.0,0.00027945,3]
[368524053,1751195458023,-490.0,0.00027945,3]
[368524055,1751195458032,-1418.54,0.00027945,3]
[368524057,1751195458041,-490.0,0.00027945,3]
[368524059,1751195458050,-490.0,0.00027945,3]
[368524061,1751195458059,-490.0,0.00027945,3]
[368524063,1751195458070,-490.0,0.00027945,3]
[368524065,1751195458079,-490.0,0.00027945,3]
[368524067,1751195458088,-490.0,0.00027945,3]
[368524069,1751195458097,-490.0,0.00027945,3]
[368524071,1751195458111,-490.0,0.00027945,3]
[368524073,1751195458123,-490.0,0.00027945,3]
[368524075,1751195458132,-516.82474106,0.00027945,3]
[368524077,1751195458141,-490.0,0.00027945,3]
[368524079,1751195458150,-490.0,0.00027945,3]
[368524081,1751195458159,-496.37,0.00027945,3]
[368524083,1751195458168,-529.58471409,0.00027945,3]
[368524085,1751195458177,-1013.41,0.00027945,3]
[368524087,1751195458186,-490.0,0.00027945,3]
[368524089,1751195458195,-305.12964999,0.00027945,3]
[368524091,1751195458204,-1113.41,0.00027945,3]
[368524093,1751195458214,-490.0,0.00027945,3]
[368524095,1751195458223,-490.0,0.00027945,3]
[368524097,1751195458233,-490.0,0.00027945,3]
[368524099,1751195458242,-490.0,0.00027945,3]
[368524101,1751195458251,-490.0,0.00027945,3]
[368524103,1751195458260,-490.0,0.00027945,3]
[368524105,1751195458269,-643.24,0.00027945,3]
[368524107,1751195458278,-490.0,0.00027945,3]
[368524109,1751195458287,-490.0,0.00027945,3]
[368524111,1751195458296,-490.0,0.00027945,3]
[368524113,1751195458305,-490.0,0.00027945,3]
[368524115,1751195458314,-490.0,0.00027945,3]
[368524117,1751195458327,-490.0,0.00027945,3]
[368524119,1751195458335,-490.0,0.00027945,3]
[368524121,1751195458344,-827.85,0.00027945,3]
[368524123,1751195458353,-1223.98,0.00027945,3]
[368524125,1751195458363,-490.0,0.00027945,3]
[368524127,1751195458372,-560.05,0.00027945,3]
[368524129,1751195458381,-815.38,0.00027945,3]
[368524131,1751195458391,-745.76,0.00027945,3]
[368524133,1751195458401,-490.0,0.00027945,3]
[368524135,1751195458410,-566.05,0.00027945,3]
[368524137,1751195458419,-490.0,0.00027945,3]
[368524139,1751195458428,-401.17545743,0.00027945,3]
[368524141,1751195458438,-568.47,0.00027945,3]
[368524143,1751195458446,-490.0,0.00027945,3]
[368524145,1751195458455,-490.0,0.00027945,3]
[368524147,1751195458464,-1242.08,0.00027945,3]
[368524149,1751195458473,-957.14,0.00027945,3]
[368524151,1751195458483,-490.0,0.00027945,3]
[368524153,1751195458493,-490.0,0.00027945,3]
[368524155,1751195458502,-403.43558002,0.00027945,3]
[368524157,1751195458511,-490.0,0.00027945,3]
[368524159,1751195458520,-490.0,0.00027945,3]
[368524161,1751195458529,-490.0,0.00027945,3]
[368524162,1751195458538,-490.0,0.00027945,3]
[368524164,1751195458547,-490.0,0.00027945,3]
[368524166,1751195458556,-532.08,0.00027945,3]
[368524168,1751195458565,-225.07793971,0.00027945,3]
[368524170,1751195458574,-490.0,0.00027945,3]
[368524172,1751195458583,-490.0,0.00027945,3]
[368524174,1751195458591,-1422.6,0.00027945,3]
[368524176,1751195458600,-490.0,0.00027945,3]
[368524178,1751195458609,-490.0,0.00027945,3]
[368524180,1751195458618,-490.0,0.00027945,3]
[368524182,1751195458627,-490.0,0.00027945,3]
[368524184,1751195458637,-490.0,0.00027945,3]
[368524186,1751195458646,-756.27,0.00027945,3]
[368524188,1751195458654,-490.0,0.00027945,3]
[368524190,1751195458664,-1401.37,0.00027945,3]
[368524192,1751195458673,-915.4,0.00027945,3]
[368524194,1751195458682,-490.0,0.00027945,3]
[368524195,1751195458691,-490.0,0.00027945,3]
[368524197,1751195458700,-1294.27,0.00027945,3]
[368524199,1751195458709,-759.55,0.00027945,3]
[368524201,1751195458719,-598.76,0.00027945,3]
[368524203,1751195458728,-1087.93,0.00027945,3]
[368524205,1751195458737,-490.0,0.00027945,3]
[368524207,1751195458747,-490.0,0.00027945,3]
[368524209,1751195458756,-490.0,0.00027945,3]
[368524211,1751195458766,-490.0,0.00027945,3]
[368524213,1751195458775,-490.0,0.00027945,3]
[368524215,1751195458785,-490.0,0.00027945,3]
[368524217,1751195458794,-490.0,0.00027945,3]
[368524219,1751195458804,-1267.05,0.00027945,3]
[368524221,1751195458813,-525.72,0.00027945,3]
[368524223,1751195458823,-490.0,0.00027945,3]
[368524225,1751195458832,-490.0,0.00027945,3]
[368524227,1751195458841,-1134.9,0.00027945,3]
[368524229,1751195458850,-493.99,0.00027945,3]
[368524231,1751195458860,-1224.95,0.00027945,3]
[368524233,1751195458869,-490.0,0.00027945,3]
[368524235,1751195458878,-571.79,0.00027945,3]
[368524237,1751195458887,-490.0,0.00027945,3]
[368524239,1751195458896,-490.0,0.00027945,3]
[368524240,1751195458905,-490.0,0.00027945,3]
[368524241,1751195458914,-490.0,0.00027945,3]
[368524242,1751195458923,-735.44,0.00027945,3]
[368524243,1751195458932,-549.79,0.00027945,3]
[368524244,1751195458941,-490.0,0.00027945,3]
[368524245,1751195458951,-738.46,0.00027945,3]
[368524246,1751195458960,-954.67,0.00027945,3]
[368524247,1751195458969,-490.0,0.00027945,3]
[368524248,1751195458978,-490.0,0.00027945,3]
[368524249,1751195458987,-843.616844,0.00027945,3]
[368524250,1751195458996,-1388.19,0.00027945,3]
[368524251,1751195459005,-490.0,0.00027945,3]
[368524252,1751195459015,-490.0,0.00027945,3]
[368524253,1751195459027,-490.0,0.00027945,3]
[368524254,1751195459036,-490.0,0.00027945,3]
[368524255,1751195459045,-490.0,0.00027945,3]
[368524256,1751195459055,-490.0,0.00027945,3]
[368524257,1751195459063,-490.0,0.00027945,3]
[368524258,1751195459073,-618.02,0.00027945,3]
[368524259,1751195459082,-292.491065,0.00027945,3]
[368524260,1751195459091,-729.8,0.00027945,3]
[368524261,1751195459100,-717.63,0.00027945,3]
[368524262,1751195459109,-490.0,0.00027945,3]
[368524263,1751195459118,-490.0,0.00027945,3]
[368524264,1751195459128,-490.0,0.00027945,3]
[368524265,1751195459137,-490.0,0.00027945,3]
[368524266,1751195459146,-779.17,0.00027945,3]
[368524267,1751195459155,-490.49,0.00027945,3]
[368524268,1751195459164,-490.0,0.00027945,3]
[368524269,1751195459174,-490.0,0.00027945,3]
[368524270,1751195459183,-490.46,0.00027945,3]
[368524272,1751195459192,-490.0,0.00027945,3]
[368524273,1751195459202,-1183.749927,0.00027945,3]
[368524276,1751195459212,-701.72,0.00027945,3]
[368524277,1751195459221,-490.0,0.00027945,3]
[368524279,1751195459230,-490.0,0.00027945,3]
[368524281,1751195459239,-1237.98,0.00027945,3]
[368524283,1751195459248,-1063.67,0.00027945,3]
[368524285,1751195459257,-663.95,0.00027945,3]
[368524287,1751195459266,-862.32,0.00027945,3]
[368524289,1751195459275,-490.0,0.00027945,3]
[368524291,1751195459284,-509.02273023,0.00027945,3]
[368524293,1751195459293,-827.18,0.00027945,3]
[368524295,1751195459303,-490.0,0.00027945,3]
[368524297,1751195459312,-490.0,0.00027945,3]
[368524299,1751195459325,-506.13801017,0.00027945,3]
[368524301,1751195459334,-490.0,0.00027945,3]
[368524303,1751195459343,-490.0,0.00027945,3]
[368524305,1751195459352,-547.47,0.00027945,3]
[368524307,1751195459363,-823.41,0.00027945,3]
[368524309,1751195459371,-668.76,0.00027945,3]
[368524311,1751195459380,-748.67,0.00027945,3]
[368524313,1751195459389,-490.0,0.00027945,3]
[368524315,1751195459399,-490.0,0.00027945,3]
[368524317,1751195459408,-490.0,0.00027945,3]
[368524319,1751195459418,-490.0,0.00027945,3]
[368524321,1751195459426,-1401.904447,0.00027945,3]
[368524322,1751195459436,-490.0,0.00027945,3]
[368524324,1751195459445,-588.25,0.00027945,3]
[368524326,1751195459454,-490.0,0.00027945,3]
[368524328,1751195459463,-490.0,0.00027945,3]
[368524330,1751195459472,-1344.91,0.00027945,3]
[368524332,1751195459481,-490.0,0.00027945,3]
[368524334,1751195459490,-490.0,0.00027945,3]
[368524336,1751195459499,-490.0,0.00027945,3]
[368524338,1751195459508,-688.18,0.00027945,3]
[368524340,1751195459517,-490.0,0.00027945,3]
[368524342,1751195459526,-490.0,0.00027945,3]
[368524344,1751195459535,-918.01,0.00027945,3]
[368524346,1751195459544,-490.0,0.00027945,3]
[368524348,1751195459553,-300.0,0.00027945,3]
[368524350,1751195459562,-606.16,0.00027945,3]
[368524352,1751195459571,-490.0,0.00027945,3]
[368524354,1751195459580,-504.36,0.00027945,3]
[368524356,1751195459589,-490.0,0.00027945,3]
[368524358,1751195459598,-860.61,0.00027945,3]
[368524360,1751195459607,-490.0,0.00027945,3]
[368524362,1751195459617,-490.0,0.00027945,3]
[368524364,1751195459625,-492.65,0.00027945,3]
[368524366,1751195459637,-1029.14,0.00027945,3]
[368524368,1751195459646,-490.95,0.00027945,3]
[368524370,1751195459655,-490.0,0.00027945,3]
[368524372,1751195459664,-490.0,0.00027945,3]
[368524374,1751195459673,-490.0,0.00027945,3]
[368524376,1751195459683,-490.0,0.00027945,3]
[368524378,1751195459692,-879.43,0.00027945,3]
[368524380,1751195459702,-576.42,0.00027945,3]
[368524382,1751195459712,-490.0,0.00027945,3]
[368524384,1751195459721,-490.0,0.00027945,3]
[368524386,1751195459731,-490.0,0.00027945,3]
[368524388,1751195459740,-593.25,0.00027945,3]
[368524390,1751195459750,-490.0,0.00027945,3]
[368524392,1751195459759,-490.0,0.00027945,3]
[368524394,1751195459768,-537.32,0.00027945,3]
[368524396,1751195459777,-1231.36,0.00027945,3]
[368524398,1751195459787,-1062.64,0.00027945,3]
[368524400,1751195459797,-603.18,0.00027945,3]
[368524402,1751195459807,-587.36,0.00027945,3]
[368524404,1751195459816,-490.0,0.00027945,3]
[368524406,1751195459825,-576.03,0.00027945,3]
[368524408,1751195459834,-490.0,0.00027945,3]
[368524410,1751195459843,-490.0,0.00027945,3]
[368524412,1751195459852,-490.0,0.00027945,3]
[368524414,1751195459862,-618.5,0.00027945,3]
[368524416,1751195459871,-996.14,0.00027945,3]
[368524418,1751195459880,-588.38,0.00027945,3]
[368524420,1751195459890,-490.0,0.00027945,3]
[368524422,1751195459899,-559.62,0.00027945,3]
[368524424,1751195459909,-593.04,0.00027945,3]
[368524426,1751195459918,-543.61,0.00027945,3]
[368524428,1751195459927,-594.32,0.00027945,3]
[368524430,1751195459936,-815.71,0.00027945,3]
[368524432,1751195459946,-490.0,0.00027945,3]
[368524434,1751195459955,-490.0,0.00027945,3]
[368524436,1751195459964,-490.0,0.00027945,3]
[368524438,1751195459974,-490.0,0.00027945,3]
[368524440,1751195459983,-496.77,0.00027945,3]
[368524442,1751195459993,-490.0,0.00027945,3]
[368524444,1751195460004,-490.0,0.00027945,3]
[368524446,1751195460013,-630.45,0.00027945,3]
[368524448,1751195460024,-612.62,0.00027945,3]
[368524450,1751195460034,-490.0,0.00027945,3]
[368524452,1751195460045,-490.0,0.00027945,3]
[368524453,1751195460055,-490.0,0.00027945,3]
[368524455,1751195460066,-734.99,0.00027945,3]
[368524456,1751195460076,-490.0,0.00027945,3]
[368524457,1751195460086,-941.86,0.00027945,3]
[368524458,1751195460096,-490.0,0.00027945,3]
[368524459,1751195460106,-606.81,0.00027945,3]
[368524460,1751195460116,-490.0,0.00027945,3]
[368524461,1751195460126,-490.0,0.00027945,3]
[368524462,1751195460136,-490.0,0.00027945,3]
[368524463,1751195460146,-490.0,0.00027945,3]
[368524464,1751195460156,-463.1449204,0.00027945,3]
[368524465,1751195460166,-1147.39,0.00027945,3]
[368524466,1751195460175,-490.0,0.00027945,3]
[368524467,1751195460185,-534.75,0.00027945,3]
[368524468,1751195460194,-342.16429556,0.00027945,3]
[368524469,1751195460204,-768.88,0.00027945,3]
[368524470,1751195460214,-490.0,0.00027945,3]
[368524471,1751195460224,-501.48,0.00027945,3]
[368524472,1751195460234,-490.0,0.00027945,3]
[368524473,1751195460243,-765.22,0.00027945,3]
[368524474,1751195460253,-490.0,0.00027945,3]
[368524475,1751195460262,-490.0,0.00027945,3]
[368524476,1751195460272,-624.11,0.00027945,3]
[368524477,1751195460281,-490.0,0.00027945,3]
[368524478,1751195460292,-490.0,0.00027945,3]
[368524479,1751195460302,-490.0,0.00027945,3]
[368524480,1751195460312,-490.0,0.00027945,3]
[368524481,1751195460325,-518.02,0.00027945,3]
[368524482,1751195460335,-490.0,0.00027945,3]
[368524483,1751195460345,-691.65,0.00027945,3]
[368524484,1751195460354,-490.0,0.00027945,3]
[368524485,1751195460365,-490.0,0.00027945,3]
[368524486,1751195460374,-490.0,0.00027945,3]
[368524487,1751195460384,-1554.34,0.00027945,3]
[368524488,1751195460394,-490.0,0.00027945,3]
[368524489,1751195460404,-536.67,0.00027945,3]
[368524490,1751195460413,-490.0,0.00027945,3]
[368524491,1751195460423,-490.0,0.00027945,3]
[368524492,1751195460432,-708.27,0.00027945,3]
[368524493,1751195460442,-1504.15,0.00027945,3]
[368524494,1751195460453,-490.0,0.00027945,3]
[368524495,1751195460463,-490.0,0.00027945,3]
[368524496,1751195460472,-490.0,0.00027945,3]
[368524497,1751195460483,-490.0,0.00027945,3]
[368524498,1751195460493,-490.0,0.00027945,3]
[368524499,1751195460502,-490.0,0.00027945,3]
[368524501,1751195460512,-490.0,0.00027945,3]
[368524503,1751195460521,-490.0,0.00027945,3]
[368524505,1751195460531,-516.87,0.00027945,3]
[368524507,1751195460540,-490.0,0.00027945,3]
[368524509,1751195460550,-490.0,0.00027945,3]
[368524511,1751195460560,-490.0,0.00027945,3]
[368524513,1751195460569,-490.0,0.00027945,3]
[368524515,1751195460579,-490.0,0.00027945,3]